fUSD/lending_fUSD_20240222
["ID","MTS","AMOUNT","RATE_DAILY","PERIOD"]
[314885073,1708618267353,-500.0,0.0003315,4]
[314885074,1708618267362,-593.07,0.0003315,4]
[314885075,1708618267371,-500.0,0.0003315,4]
[314885076,1708618267380,-500.0,0.0003315,4]
[314885077,1708618267389,-500.0,0.0003315,4]
[314885078,1708618267399,-1664.09,0.0003315,4]
[314885079,1708618267408,-500.0,0.0003315,4]
[314885080,1708618267418,-500.0,0.0003315,4]
[314885081,1708618267427,-500.0,0.0003315,4]
[314885082,1708618267437,-500.0,0.0003315,4]
[314885083,1708618267446,-500.0,0.0003315,4]
[314885084,1708618267455,-500.0,0.0003315,4]
[314885085,1708618267465,-707.97,0.0003315,4]
[314885086,1708618267474,-500.0,0.0003315,4]
[314885087,1708618267483,-541.25,0.0003315,4]
[314885088,1708618267492,-806.08,0.0003315,4]
[314885089,1708618267501,-500.0,0.0003315,4]
[314885090,1708618267510,-508.79556699,0.0003315,4]
[314885091,1708618267519,-500.0,0.0003315,4]
[314885092,1708618267528,-500.0,0.0003315,4]
[314885093,1708618267537,-500.0,0.0003315,4]
[314885094,1708618267546,-500.0,0.0003315,2]
[314885095,1708618267554,-500.0,0.0003315,4]
[314885096,1708618267563,-795.33,0.0003315,4]
[314885097,1708618267572,-500.0,0.0003315,4]
[314885098,1708618267581,-500.0,0.0003315,4]
[314885099,1708618267590,-500.0,0.0003315,4]
[314885100,1708618267600,-971.84,0.0003315,4]
[314885101,1708618267610,-500.0,0.0003315,4]
[314885102,1708618267620,-500.0,0.0003315,4]
[314885103,1708618267629,-500.0,0.0003315,4]
[314885104,1708618267640,-500.0,0.0003315,4]
[314885105,1708618267649,-912.15,0.0003315,4]
[314885106,1708618267659,-500.0,0.0003315,4]
[314885107,1708618267669,-500.0,0.0003315,4]
[314885108,1708618267680,-500.0,0.0003315,4]
[314885109,1708618267690,-500.0,0.0003315,4]
[314885110,1708618267699,-500.0,0.0003315,4]
[314885111,1708618267708,-684.49,0.0003315,4]
[314885112,1708618267718,-500.0,0.0003315,4]
[314885113,1708618267728,-500.0,0.0003315,4]
[314885114,1708618267737,-500.0,0.0003315,4]
[314885115,1708618267748,-500.0,0.0003315,4]
[314885116,1708618267758,-500.0,0.0003315,4]
[314885117,1708618267768,-500.0,0.0003315,2]
[314885118,1708618267777,-500.0,0.0003315,4]
[314885119,1708618267787,-500.0,0.0003315,4]
[314885120,1708618267796,-500.0,0.0003315,4]
[314885121,1708618267805,-500.0,0.0003315,4]
[314885122,1708618267816,-520.87,0.0003315,4]
[314885123,1708618267825,-732.41,0.0003315,4]
[314885124,1708618267835,-711.38,0.0003315,4]
[314885125,1708618267845,-500.0,0.0003315,4]
[314885126,1708618267854,-548.69,0.0003315,4]
[314885127,1708618267863,-500.0,0.0003315,4]
[314885128,1708618267872,-892.63,0.0003315,4]
[314885129,1708618267881,-610.18,0.0003315,4]
[314885130,1708618267890,-861.61,0.0003315,4]
[314885131,1708618267900,-500.0,0.0003315,4]
[314885132,1708618267909,-500.0,0.0003315,4]
[314885133,1708618267919,-500.0,0.0003315,2]
[314885134,1708618267928,-619.5,0.0003315,4]
[314885135,1708618267938,-783.44,0.0003315,4]
[314885136,1708618267947,-813.29,0.0003315,4]
[314885137,1708618267957,-500.0,0.0003315,14]
[314885138,1708618267966,-513.93134784,0.0003315,4]
[314885139,1708618267975,-500.0,0.0003315,4]
[314885140,1708618267984,-500.0,0.0003315,4]
[314885141,1708618267995,-500.0,0.0003315,4]
[314885142,1708618268004,-500.0,0.0003315,4]
[314885143,1708618268013,-500.0,0.0003315,4]
[314885144,1708618268023,-500.0,0.0003315,4]
[314885145,1708618268032,-1606.49,0.0003315,4]
[314885146,1708618268041,-500.0,0.0003315,4]
[314885147,1708618268050,-500.0,0.0003315,4]
[314885148,1708618268059,-962.94,0.0003315,4]
[314885149,1708618268069,-500.0,0.0003315,4]
[314885150,1708618268078,-1214.57,0.0003315,4]
[314885151,1708618268087,-500.0,0.0003315,4]
[314885152,1708618268097,-500.0,0.0003315,4]
[314885153,1708618268106,-500.0,0.0003315,4]
[314885154,1708618268115,-500.0,0.0003315,4]
[314885155,1708618268124,-320.86394905,0.0003315,4]
[314885156,1708618268133,-500.0,0.0003315,4]
[314885157,1708618268142,-507.72,0.0003315,4]
[314885158,1708618268152,-1287.69,0.0003315,4]
[314885159,1708618268161,-500.0,0.0003315,4]
[314885160,1708618268170,-500.0,0.0003315,4]
[314885161,1708618268179,-500.0,0.0003315,4]
[314885162,1708618268189,-500.0,0.0003315,4]
[314885163,1708618268198,-500.0,0.0003315,2]
[314885164,1708618268207,-500.0,0.0003315,4]
[314885165,1708618268216,-894.45,0.0003315,4]
[314885166,1708618268226,-630.4,0.0003315,4]
[314885167,1708618268235,-500.0,0.0003315,4]
[314885168,1708618268245,-500.0,0.0003315,4]
[314885169,1708618268255,-500.0,0.0003315,4]
[314885170,1708618268264,-500.0,0.0003315,4]
[314885171,1708618268273,-500.0,0.0003315,4]
[314885172,1708618268283,-500.0,0.0003315,4]
[314885173,1708618268292,-500.0,0.0003315,4]
[314885174,1708618268301,-500.0,0.0003315,4]
[314885175,1708618268310,-500.0,0.0003315,4]
[314885176,1708618268319,-500.0,0.0003315,4]
[314885177,1708618268329,-500.0,0.0003315,4]
[314885178,1708618268338,-500.0,0.0003315,4]
[314885179,1708618268347,-638.89,0.0003315,4]
[314885180,1708618268356,-500.0,0.0003315,4]
[314885181,1708618268366,-500.0,0.0003315,4]
[314885182,1708618268375,-500.0,0.0003315,4]
[314885183,1708618268384,-512.93,0.0003315,4]
[314885184,1708618268393,-500.0,0.0003315,4]
[314885185,1708618268403,-500.0,0.0003315,4]
[314885186,1708618268413,-500.0,0.0003315,4]
[314885187,1708618268422,-906.48,0.0003315,4]
[314885188,1708618268432,-1102.31,0.0003315,4]
[314885189,1708618268444,-500.0,0.0003315,4]
[314885190,1708618268453,-500.0,0.0003315,4]
[314885191,1708618268463,-500.0,0.0003315,4]
[314885192,1708618268472,-612.98,0.0003315,4]
[314885193,1708618268482,-500.0,0.0003315,4]
[314885194,1708618268491,-500.0,0.0003315,4]
[314885195,1708618268501,-652.81,0.0003315,4]
[314885196,1708618268511,-500.0,0.0003315,4]
[314885197,1708618268520,-513.52530712,0.0003315,4]
[314885198,1708618268530,-500.0,0.0003315,4]
[314885199,1708618268539,-283.77112351,0.0003315,4]
[314885200,1708618268549,-514.91,0.0003315,4]
[314885201,1708618268558,-500.0,0.0003315,4]
[314885202,1708618268568,-500.0,0.0003315,4]
[314885203,1708618268577,-503.00480584,0.0003315,4]
[314885204,1708618268586,-500.0,0.0003315,4]
[314885205,1708618268596,-500.0,0.0003315,4]
[314885206,1708618268606,-500.0,0.0003315,4]
[314885207,1708618268616,-691.7,0.0003315,4]
[314885208,1708618268625,-580.95,0.0003315,4]
[314885209,1708618268635,-500.0,0.0003315,4]
[314885210,1708618268645,-500.0,0.0003315,4]
[314885211,1708618268655,-500.0,0.0003315,4]
[314885212,1708618268664,-500.0,0.0003315,4]
[314885213,1708618268674,-500.0,0.0003315,4]
[314885214,1708618268685,-500.0,0.0003315,4]
[314885215,1708618268695,-834.16,0.0003315,4]
[314885216,1708618268704,-500.0,0.0003315,4]
[314885217,1708618268713,-500.0,0.0003315,4]
[314885218,1708618268723,-500.0,0.0003315,4]
[314885219,1708618268733,-542.88,0.0003315,4]
[314885220,1708618268744,-500.0,0.0003315,4]
[314885221,1708618268755,-500.0,0.0003315,4]
[314885222,1708618268765,-975.58,0.0003315,4]
[314885223,1708618268774,-500.0,0.0003315,4]
[314885224,1708618268784,-500.0,0.0003315,4]
[314885225,1708618268794,-500.0,0.0003315,4]
[314885226,1708618268803,-500.0,0.0003315,4]
[314885227,1708618268813,-500.0,0.0003315,4]
[314885228,1708618268822,-500.0,0.0003315,4]
[314885229,1708618268831,-891.4,0.0003315,4]
[314885230,1708618268841,-150.0,0.0003315,4]
[314885231,1708618268851,-1085.51921133,0.0003315,7]
[314885232,1708618268861,-1203.02,0.0003315,4]
[314885233,1708618268870,-500.0,0.0003315,4]
[314885234,1708618268880,-500.0,0.0003315,4]
[314885235,1708618268889,-500.0,0.0003315,4]
[314885236,1708618268899,-500.0,0.0003315,4]
[314885237,1708618268909,-788.82,0.0003315,4]
[314885238,1708618268918,-500.0,0.0003315,4]
[314885239,1708618268927,-500.0,0.0003315,4]
[314885240,1708618268937,-562.47,0.0003315,4]
[314885241,1708618268946,-746.08,0.0003315,4]
[314885242,1708618268955,-500.0,0.0003315,4]
[314885243,1708618268965,-2940.36331847,0.0003315,4]
[314885244,1708618268975,-500.0,0.0003315,4]
[314885245,1708618268984,-560.55,0.0003315,4]
[314885246,1708618268995,-500.0,0.0003315,4]
[314885247,1708618269004,-537.3,0.0003315,4]
[314885248,1708618269012,-500.0,0.0003315,4]
[314885249,1708618269022,-500.0,0.0003315,4]
[314885250,1708618269032,-824.56,0.0003315,4]
[314885251,1708618269041,-500.0,0.0003315,4]
[314885252,1708618269050,-500.0,0.0003315,4]
[314885253,1708618269060,-500.0,0.0003315,4]
[314885254,1708618269069,-909.09,0.0003315,4]
[314885255,1708618269078,-500.0,0.0003315,4]
[314885256,1708618269088,-500.0,0.0003315,4]
[314885257,1708618269097,-771.9,0.0003315,4]
[314885258,1708618269106,-500.0,0.0003315,4]
[314885259,1708618269116,-381.7032827,0.0003315,4]
[314885260,1708618269125,-500.0,0.0003315,4]
[314885261,1708618269134,-1000.0,0.0003315,2]
[314885262,1708618269143,-487.85656949,0.0003315,4]
[314885263,1708618269153,-500.0,0.0003315,4]
[314885264,1708618269162,-500.0,0.0003315,4]
[314885265,1708618269171,-618.1,0.0003315,4]
[314885266,1708618269181,-566.71,0.0003315,4]
[314885267,1708618269190,-500.0,0.0003315,4]
[314885268,1708618269200,-616.79800319,0.0003315,4]
[314885269,1708618269210,-500.0,0.0003315,4]
[314885270,1708618269220,-3396.29,0.0003315,4]
[314885271,1708618269230,-500.0,0.0003315,4]
[314885272,1708618269240,-500.0,0.0003315,4]
[314885273,1708618269250,-1000.0,0.0003315,7]
[314885274,1708618269260,-500.0,0.0003315,4]
[314885275,1708618269269,-788.62,0.0003315,4]
[314885276,1708618269278,-702.3,0.0003315,4]
[314885277,1708618269288,-500.0,0.0003315,4]
[314885278,1708618269297,-162.80908202,0.0003315,4]
[314885279,1708618269306,-500.0,0.0003315,4]
[314885280,1708618269315,-500.0,0.0003315,4]
[314885281,1708618269324,-500.0,0.0003315,4]
[314885282,1708618269333,-689.47,0.0003315,4]
[314885283,1708618269342,-500.0,0.0003315,4]
[314885284,1708618269351,-500.0,0.0003315,4]
[314885285,1708618269360,-500.0,0.0003315,4]
[314885286,1708618269369,-500.0,0.0003315,4]
[314885287,1708618269379,-500.0,0.0003315,4]
[314885288,1708618269388,-907.94,0.0003315,4]
[314885289,1708618269398,-500.0,0.0003315,4]
[314885290,1708618269407,-521.42065168,0.0003315,4]
[314885291,1708618269416,-885.64,0.0003315,4]
[314885292,1708618269426,-500.0,0.0003315,4]
[314885293,1708618269435,-1733.3,0.0003315,4]
[314885294,1708618269445,-500.0,0.0003315,4]
[314885295,1708618269454,-506.52650878,0.0003315,4]
[314885296,1708618269463,-500.0,0.0003315,4]
[314885297,1708618269472,-500.0,0.0003315,4]
[314885298,1708618269482,-500.0,0.0003315,4]
[314885299,1708618269491,-544.21633157,0.0003315,4]
[314885300,1708618269501,-500.0,0.0003315,4]
[314885301,1708618269510,-500.0,0.0003315,4]
[314885302,1708618269520,-683.07,0.0003315,4]
[314885303,1708618269529,-575.21391225,0.0003315,4]
[314885304,1708618269539,-500.0,0.0003315,4]
[314885305,1708618269549,-500.0,0.0003315,4]
[314885306,1708618269558,-800.64,0.0003315,4]
[314885307,1708618269567,-696.6,0.0003315,4]
[314885308,1708618269577,-500.0,0.0003315,4]
[314885309,1708618269586,-538.53805819,0.0003315,4]
[314885310,1708618269596,-692.0,0.0003315,4]
[314885311,1708618269605,-500.0,0.0003315,4]
[314885312,1708618269615,-1079.35,0.0003315,4]
[314885313,1708618269625,-500.0,0.0003315,4]
[314885314,1708618269634,-500.0,0.0003315,4]
[314885315,1708618269644,-500.0,0.0003315,4]
[314885316,1708618269654,-500.0,0.0003315,4]
[314885317,1708618269663,-500.0,0.0003315,4]
[314885318,1708618269857,-460.68114316,0.0003315,4]
[314885319,1708618269882,-500.0,0.0003315,4]
[314885320,1708618269892,-500.0,0.0003315,4]
[314885321,1708618269902,-500.0,0.0003315,4]
[314885322,1708618269912,-500.0,0.0003315,4]
[314885323,1708618269921,-1257.16,0.0003315,4]
[314885324,1708618269930,-500.0,0.0003315,4]
[314885325,1708618269940,-524.74291876,0.0003315,4]
[314885326,1708618269950,-2402.47,0.0003315,4]
[314885327,1708618269960,-500.0,0.0003315,4]
[314885328,1708618269969,-500.0,0.0003315,4]
[314885329,1708618269978,-477.34967759,0.0003315,4]
[314885330,1708618269987,-500.0,0.0003315,4]
[314885331,1708618269997,-729.4,0.0003315,4]
[314885332,1708618270007,-1114.12,0.0003315,4]
[314885333,1708618270016,-500.0,0.0003315,4]
[314885334,1708618270025,-500.0,0.0003315,4]
[314885335,1708618270034,-563.94,0.0003315,4]
[314885336,1708618270044,-500.0,0.0003315,4]
[314885337,1708618270053,-500.0,0.0003315,4]
[314885338,1708618270063,-500.0,0.0003315,4]
[314885339,1708618270072,-519.85,0.0003315,4]
[314885340,1708618270082,-2169.02,0.0003315,4]
[314885341,1708618270091,-500.0,0.0003315,4]
[314885342,1708618270101,-500.0,0.0003315,4]
[314885343,1708618270110,-500.0,0.0003315,4]
[314885344,1708618270119,-911.71,0.0003315,4]
[314885345,1708618270129,-500.0,0.0003315,4]
[314885346,1708618270138,-500.0,0.0003315,4]
[314885347,1708618270148,-500.0,0.0003315,4]
[314885348,1708618270157,-500.0,0.0003315,4]
[314885349,1708618270167,-764.55,0.0003315,4]
[314885350,1708618270176,-1111.18,0.0003315,4]
[314885351,1708618270185,-981.11,0.0003315,4]
[314885352,1708618270195,-514.73374373,0.0003315,4]
[314885353,1708618270204,-15474.83,0.0003315,4]
[314885354,1708618270213,-1310.6,0.0003315,4]
[314885355,1708618270222,-489.69345947,0.0003315,4]
[314885356,1708618270231,-3161.47,0.0003315,4]
[314885357,1708618270241,-774.09,0.0003315,4]
[314885358,1708618270251,-500.0,0.0003315,4]
[314885359,1708618270260,-500.0,0.0003315,4]
[314885360,1708618270270,-500.0,0.0003315,4]
[314885361,1708618270279,-500.0,0.0003315,4]
[314885362,1708618270288,-500.0,0.0003315,4]
[314885363,1708618270298,-500.0,0.0003315,4]
[314885364,1708618270306,-500.0,0.0003315,4]
[314885365,1708618270315,-500.0,0.0003315,4]
[314885366,1708618270325,-500.0,0.0003315,4]
[314885367,1708618270334,-765.57,0.0003315,4]
[314885368,1708618270343,-1414.29,0.0003315,2]
[314885369,1708618270352,-500.0,0.0003315,4]
[314885370,1708618270361,-500.0,0.0003315,4]
[314885371,1708618270370,-500.0,0.0003315,4]
[314885372,1708618270379,-1179.58,0.0003315,4]
[314885373,1708618270388,-649.86,0.0003315,4]
[314885374,1708618270397,-500.0,0.0003315,4]
[314885375,1708618270407,-1574.17,0.0003315,4]
[314885376,1708618270416,-500.0,0.0003315,4]
[314885377,1708618270426,-500.0,0.0003315,4]
[314885378,1708618270435,-508.78321066,0.0003315,4]
[314885379,1708618270445,-685.37,0.0003315,4]
[314885380,1708618270454,-500.0,0.0003315,4]
[314885381,1708618270463,-4743.37,0.0003315,4]
[314885382,1708618270473,-841.39,0.0003315,4]
[314885383,1708618270482,-500.0,0.0003315,4]
[314885384,1708618270491,-500.0,0.0003315,4]
[314885385,1708618270501,-334.88201494,0.0003315,4]
[314885386,1708618270510,-571.87,0.0003315,4]
[314885387,1708618270519,-1517.29,0.0003315,4]
[314885388,1708618270528,-500.0,0.0003315,4]
[314885389,1708618270538,-186.91590305,0.0003315,4]
[314885390,1708618270547,-500.0,0.0003315,4]
[314885391,1708618270557,-500.0,0.0003315,4]
[314885392,1708618270566,-1175.74,0.0003315,4]
[314885393,1708618270575,-500.0,0.0003315,4]
[314885394,1708618270584,-3534.15,0.0003315,4]
[314885395,1708618270593,-636.4,0.0003315,4]
[314885396,1708618270603,-500.0,0.0003315,4]
[314885397,1708618270612,-500.0,0.0003315,4]
[314885398,1708618270621,-500.0,0.0003315,4]
[314885399,1708618270630,-804.83,0.0003315,4]
[314885400,1708618270641,-500.0,0.0003315,4]
[314885401,1708618270650,-500.0,0.0003315,4]
[314885402,1708618270660,-500.0,0.0003315,4]
[314885403,1708618270669,-500.0,0.0003315,4]
[314885404,1708618270680,-500.0,0.0003315,4]
[314885405,1708618270690,-500.0,0.0003315,4]
[314885406,1708618270700,-517.88911927,0.0003315,4]
[314885407,1708618270710,-650.72,0.0003315,4]
[314885408,1708618270720,-936.23,0.0003315,4]
[314885409,1708618270731,-802.34,0.0003315,4]
[314885410,1708618270740,-1046.17,0.0003315,4]
[314885411,1708618270750,-500.0,0.0003315,4]
[314885412,1708618270761,-1976.0,0.0003315,4]
[314885413,1708618270771,-500.0,0.0003315,4]
[314885414,1708618270781,-500.0,0.0003315,4]
[314885415,1708618270790,-1173.75,0.0003315,4]
[314885416,1708618270799,-500.0,0.0003315,4]
[314885417,1708618270808,-3825.32,0.0003315,4]
[314885418,1708618270818,-500.0,0.0003315,4]
[314885419,1708618270827,-1218.45,0.0003315,4]
[314885420,1708618270836,-2873.73,0.0003315,4]
[314885421,1708618270846,-1161.2,0.0003315,4]
[314885422,1708618270856,-1421.83,0.0003315,4]
[314885423,1708618270865,-565.23,0.0003315,4]
[314885424,1708618270876,-500.0,0.0003315,4]
[314885425,1708618270885,-511.68367901,0.0003315,4]
[314885426,1708618270895,-626.07,0.0003315,4]
[314885427,1708618270904,-890.32,0.0003315,4]
[314885428,1708618270913,-500.0,0.0003315,4]
[314885429,1708618270922,-500.0,0.0003315,4]
[314885430,1708618270931,-500.0,0.0003315,4]
[314885431,1708618270941,-4927.14,0.0003315,4]
[314885432,1708618270950,-587.72214141,0.0003315,2]
[314885433,1708618270960,-500.0,0.0003315,4]
[314885434,1708618270969,-549.85,0.0003315,4]
[314885435,1708618270979,-500.0,0.0003315,4]
[314885436,1708618270989,-10020.14,0.0003315,4]
[314885437,1708618270998,-509.90147591,0.0003315,4]
[314885438,1708618271008,-500.0,0.0003315,4]
[314885439,1708618271018,-500.0,0.0003315,4]
[314885440,1708618271027,-500.0,0.0003315,4]
[314885441,1708618271038,-839.6,0.0003315,4]
[314885442,1708618271048,-500.0,0.0003315,4]
[314885443,1708618271059,-500.0,0.0003315,4]
[314885444,1708618271068,-500.0,0.0003315,4]
[314885445,1708618271079,-500.0,0.0003315,4]
[314885446,1708618271090,-3895.73,0.0003315,4]
[314885447,1708618271100,-500.0,0.0003315,4]
[314885448,1708618271111,-1324.86,0.0003315,4]
[314885449,1708618271120,-4532.66,0.0003315,4]
[314885450,1708618271130,-500.0,0.0003315,2]
[314885451,1708618271139,-1267.59,0.0003315,4]
[314885452,1708618271149,-500.0,0.0003315,4]
[314885453,1708618271159,-1236.64,0.0003315,4]
[314885454,1708618271168,-500.0,0.0003315,4]
[314885455,1708618271178,-500.0,0.0003315,4]
[314885456,1708618271187,-541.46,0.0003315,4]
[314885457,1708618271197,-500.0,0.0003315,4]
[314885458,1708618271206,-1472.5,0.0003315,4]
[314885459,1708618271215,-500.0,0.0003315,4]
[314885460,1708618271225,-500.0,0.0003315,4]
[314885461,1708618271234,-500.0,0.0003315,4]
[314885462,1708618271244,-3676.7,0.0003315,4]
[314885463,1708618271255,-825.18,0.0003315,4]
[314885464,1708618271265,-2806.56,0.0003315,4]
[314885465,1708618271275,-757.82,0.0003315,4]
[314885466,1708618271285,-915.58,0.0003315,4]
[314885467,1708618271294,-500.0,0.0003315,4]
[314885468,1708618271304,-1290.4,0.0003315,4]
[314885469,1708618271313,-500.0,0.0003315,4]
[314885470,1708618271323,-500.0,0.0003315,4]
[314885471,1708618271332,-500.0,0.0003315,4]
[314885472,1708618271341,-513.8991,0.0003315,4]
[314885473,1708618271351,-500.0,0.0003315,4]
[314885474,1708618271361,-500.0,0.0003315,4]
[314885475,1708618271370,-500.0,0.0003315,4]
[314885476,1708618271380,-500.0,0.0003315,4]
[314885477,1708618271390,-968.98,0.0003315,4]
[314885478,1708618271399,-13677.78,0.0003315,4]
[314885479,1708618271408,-500.0,0.0003315,4]
[314885480,1708618271417,-11640.88,0.0003315,4]
[314885481,1708618271426,-1043.72,0.0003315,4]
[314885482,1708618271435,-500.0,0.0003315,4]
[314885483,1708618271445,-500.0,0.0003315,4]
[314885484,1708618271454,-500.0,0.0003315,4]
[314885485,1708618271464,-1326.85,0.0003315,4]
[314885486,1708618271473,-2733.42,0.0003315,4]
[314885487,1708618271482,-720.82,0.0003315,4]
[314885488,1708618271491,-500.0,0.0003315,4]
[314885489,1708618271500,-1391.36,0.0003315,4]
[314885490,1708618271509,-1085.88,0.0003315,4]
[314885491,1708618271519,-217.20830393,0.0003315,4]
[314885492,1708618271529,-1337.26,0.0003315,4]
[314885493,1708618271538,-500.0,0.0003315,4]
[314885494,1708618271548,-597.84,0.0003315,4]
[314885495,1708618271557,-500.0,0.0003315,4]
[314885496,1708618271567,-505.58211773,0.0003315,4]
[314885497,1708618271576,-11071.3,0.0003315,4]
[314885498,1708618271586,-517.96449791,0.0003315,4]
[314885499,1708618271595,-500.0,0.0003315,4]
[314885500,1708618271605,-2947.99,0.0003315,4]
[314885501,1708618271614,-500.0,0.0003315,4]
[314885502,1708618271623,-630.25,0.0003315,4]
[314885503,1708618271633,-8731.79,0.0003315,4]
[314885504,1708618271642,-500.0,0.0003315,4]
[314885505,1708618271652,-500.0,0.0003315,4]
[314885506,1708618271663,-500.0,0.0003315,4]
[314885507,1708618271673,-926.35,0.0003315,4]
[314885508,1708618271685,-540.23,0.0003315,4]
[314885509,1708618271695,-947.73,0.0003315,4]
[314885510,1708618271704,-500.0,0.0003315,4]
[314885511,1708618271714,-500.0,0.0003315,4]
[314885512,1708618271723,-16800.98,0.0003315,4]
[314885513,1708618271733,-679.52,0.0003315,4]
[314885514,1708618271743,-2763.45,0.0003315,4]
[314885515,1708618271754,-500.0,0.0003315,4]
[314885516,1708618271764,-2283.83,0.0003315,4]
[314885517,1708618271774,-500.0,0.0003315,4]
[314885518,1708618271783,-593.3,0.0003315,4]
[314885519,1708618271793,-923.93,0.0003315,4]
[314885520,1708618271802,-500.0,0.0003315,4]
[314885521,1708618271811,-500.0,0.0003315,4]
[314885522,1708618271820,-2615.23,0.0003315,4]
[314885523,1708618271830,-544.82065151,0.0003315,4]
[314885524,1708618271839,-500.0,0.0003315,4]
[314885525,1708618271848,-500.0,0.0003315,4]
[314885526,1708618271857,-500.0,0.0003315,4]
[314885527,1708618271867,-1449.55,0.0003315,4]
[314885528,1708618271876,-7029.3,0.0003315,4]
[314885529,1708618271885,-1361.97,0.0003315,4]
[314885530,1708618271894,-500.0,0.0003315,4]
[314885531,1708618271903,-4630.87,0.0003315,4]
[314885532,1708618271912,-747.57,0.0003315,4]
[314885533,1708618271921,-500.0,0.0003315,4]
[314885534,1708618271930,-404.31026061,0.0003315,4]
[314885535,1708618271940,-2615.07,0.0003315,4]
[314885536,1708618271949,-618.94,0.0003315,4]
[314885537,1708618271958,-500.0,0.0003315,4]
[314885538,1708618271967,-500.0,0.0003315,4]
[314885539,1708618271976,-521.85,0.0003315,4]
[314885540,1708618271985,-500.0,0.0003315,4]
[314885541,1708618271994,-651.84,0.0003315,4]
[314885542,1708618272005,-805.0,0.0003315,4]
[314885543,1708618272014,-5949.77,0.0003315,4]
[314885544,1708618272023,-500.0,0.0003315,4]
[314885545,1708618272033,-3716.68,0.0003315,4]
[314885546,1708618272042,-500.0,0.0003315,4]
[314885547,1708618272052,-779.4,0.0003315,4]
[314885548,1708618272062,-500.0,0.0003315,4]
[314885549,1708618272073,-20142.64,0.0003315,4]
[314885550,1708618272083,-44388.41,0.0003315,4]
[314885551,1708618272092,-500.0,0.0003315,4]
[314885552,1708618272102,-814.71,0.0003315,4]
[314885553,1708618272113,-14555.66,0.0003315,4]
[314885554,1708618272123,-1879.92,0.0003315,4]
[314885555,1708618272134,-17970.35,0.0003315,4]
[314885556,1708618272143,-500.0,0.0003315,4]
[314885557,1708618272154,-4888.9,0.0003315,4]
[314885558,1708618272164,-500.0,0.0003315,4]
[314885559,1708618272175,-500.0,0.0003315,4]
[314885560,1708618272186,-523.68885117,0.0003315,4]
[314885561,1708618272196,-780.0,0.0003315,4]
[314885562,1708618272206,-557.21,0.0003315,4]
[314885563,1708618272216,-500.0,0.0003315,4]
[314885564,1708618272227,-500.0,0.0003315,4]
[314885565,1708618272237,-4527.53,0.0003315,4]
[314885566,1708618272247,-2182.16,0.0003315,4]
[314885567,1708618272264,-651.25,0.0003315,4]
[314885568,1708618272274,-945.38,0.0003315,4]
[314885569,1708618272284,-592.68,0.0003315,4]
[314885570,1708618272295,-912.38,0.0003315,4]
[314885571,1708618272304,-875.97,0.0003315,4]
[314885572,1708618272315,-500.0,0.0003315,4]